fUSD/lending_fUSD_20240116
["ID","MTS","AMOUNT","RATE_DAILY","PERIOD"]
[311741934,1705372146701,411.93,0.00021289,2]
[311741935,1705372158483,1067.09,0.00021289,2]
[311741936,1705372169547,153.11613039,0.00021174,2]
[311741940,1705372187477,204.88,0.00021289,2]
[311741942,1705372202720,285.06,0.00019384,2]
[311741943,1705372202953,285.06,0.00021648,2]
[311741944,1705372224685,2000.0,0.00021289,2]
[311741945,1705372230874,150.0,0.00021301,2]
[311741951,1705372231525,-300.0,0.00022139,2]
[311741952,1705372231535,-150.0,0.00022139,2]
[311741953,1705372231546,-105.79337352,0.0002214,2]
[311741954,1705372231620,-1169.53619494,0.0002214,2]
[311741955,1705372231632,-8187.96528008,0.0002214,2]
[311741956,1705372231655,-627.62684945,0.0002214,2]
[311741957,1705372231727,-18398.63690968,0.0002214,2]
[311741958,1705372231737,-1205.93102565,0.00022161,2]
[311741959,1705372231746,-417.53571054,0.00022162,2]
[311741960,1705372231756,-936.92,0.00022163,2]
[311741961,1705372231765,-643.91,0.00022163,2]
[311741962,1705372231775,-556.06,0.00022163,2]
[311741963,1705372231784,-500.0,0.00022163,2]
[311741964,1705372231793,-500.0,0.00022163,2]
[311741965,1705372231802,-640.66,0.00022163,2]
[311741966,1705372231811,-558.85,0.00022163,2]
[311741967,1705372231822,-913.46,0.00022163,2]
[311741968,1705372231832,-572.4,0.00022163,2]
[311741969,1705372231841,-645.18,0.00022163,2]
[311741970,1705372231850,-598.43,0.00022163,2]
[311741971,1705372231860,-500.0,0.00022163,2]
[311741972,1705372231869,-500.0,0.00022163,2]
[311741973,1705372231878,-831.61,0.00022163,2]
[311741974,1705372231888,-730.05,0.00022163,2]
[311741975,1705372231897,-528.79,0.00022163,2]
[311741976,1705372231906,-697.04,0.00022163,2]
[311741977,1705372231915,-500.0,0.00022163,2]
[311741978,1705372231924,-500.0,0.00022163,2]
[311741979,1705372231934,-1025.54,0.00022163,2]
[311741980,1705372231943,-529.51,0.00022163,2]
[311741981,1705372231953,-500.0,0.00022163,2]
[311741982,1705372231962,-1200.22,0.00022163,2]
[311741983,1705372231971,-500.0,0.00022163,2]
[311741984,1705372231981,-500.0,0.00022163,2]
[311741985,1705372231990,-500.0,0.00022163,2]
[311741986,1705372232000,-500.0,0.00022163,2]
[311741987,1705372232010,-584.03,0.00022163,2]
[311741988,1705372232020,-746.95,0.00022163,2]
[311741989,1705372232029,-785.37,0.00022163,2]
[311741990,1705372232039,-500.0,0.00022163,2]
[311741991,1705372232048,-734.19,0.00022163,2]
[311741992,1705372232057,-500.0,0.00022163,2]
[311741993,1705372232066,-592.41,0.00022163,2]
[311741994,1705372232075,-1515.39,0.00022163,2]
[311741995,1705372232084,-1053.27,0.00022163,2]
[311741996,1705372232094,-500.0,0.00022163,2]
[311741997,1705372232103,-532.22,0.00022163,2]
[311741998,1705372232113,-641.85,0.00022163,2]
[311741999,1705372232122,-500.0,0.00022163,2]
[311742000,1705372232132,-560.71,0.00022163,2]
[311742001,1705372232141,-713.46,0.00022163,2]
[311742002,1705372232150,-1052.36,0.00022163,2]
[311742003,1705372232161,-880.28,0.00022163,2]
[311742004,1705372232176,-500.0,0.00022163,2]
[311742005,1705372232185,-841.02,0.00022163,2]
[311742006,1705372232194,-1003.86,0.00022163,2]
[311742007,1705372232207,-536.31,0.00022163,2]
[311742008,1705372232217,-977.88,0.00022163,2]
[311742009,1705372232226,-706.91,0.00022163,2]
[311742010,1705372232235,-500.0,0.00022163,2]
[311742011,1705372232244,-6040.22,0.00022163,2]
[311742012,1705372232254,-748.15,0.00022163,2]
[311742013,1705372232265,-500.0,0.00022163,2]
[311742014,1705372232274,-1556.38,0.00022163,2]
[311742015,1705372232284,-618.1,0.00022163,2]
[311742016,1705372232294,-500.0,0.00022163,2]
[311742017,1705372232304,-586.19,0.00022163,2]
[311742018,1705372232313,-500.0,0.00022163,2]
[311742019,1705372232322,-2423.61,0.00022163,2]
[311742020,1705372232331,-826.41,0.00022163,2]
[311742021,1705372232341,-1035.12,0.00022163,2]
[311742022,1705372232350,-1201.79,0.00022163,2]
[311742023,1705372232359,-1344.72,0.00022163,2]
[311742024,1705372232369,-426.65312189,0.00022163,2]
[311742025,1705372232378,-500.0,0.00022163,2]
[311742026,1705372232388,-769.75,0.00022163,2]
[311742027,1705372232398,-2198.25,0.00022163,2]
[311742028,1705372232407,-658.25,0.00022163,2]
[311742029,1705372232417,-702.16,0.00022163,2]
[311742030,1705372232426,-1129.9,0.00022163,2]
[311742031,1705372232435,-139.01436453,0.00022163,2]
[311742032,1705372232448,-360.98563547,0.00022163,2]
[311742033,1705372232458,-24.34760071,0.00022163,2]
[311742034,1705372232479,-492.30239929,0.00022163,2]
[311742035,1705372232488,-542.81,0.00022163,2]
[311742036,1705372232498,-248.07760071,0.00022163,2]
[311742037,1705372232510,-650.41397724,0.00022163,2]
[311742038,1705372232522,-222.48842205,0.00022163,2]
[311742039,1705372232531,-269.72483538,0.00022163,2]
[311742040,1705372232543,-901.37516462,0.00022163,2]
[311742041,1705372232553,-500.0,0.00022163,2]
[311742042,1705372232562,-500.0,0.00022163,2]
[311742043,1705372232572,-990.3,0.00022163,2]
[311742044,1705372232582,-133.71215197,0.00022163,2]
[311742045,1705372232593,-1934.24120179,0.00022163,2]
[311742046,1705372232688,-491.89664624,0.00022163,2]
[311742047,1705372232698,-1699.91,0.00022163,2]
[311742048,1705372232710,-737.77,0.00022163,2]
[311742049,1705372232720,-2878.96025063,0.00022163,2]
[311742075,1705372238029,-320.02750419,0.00022163,2]
[311742078,1705372238050,-664.88675611,0.00022163,2]
[311742116,1705372238499,-1569.02548907,0.00022163,2]
[311742118,1705372238509,-720.52,0.00022163,2]
[311742120,1705372238518,-500.0,0.00022163,2]
[311742122,1705372238528,-8087.15,0.00022163,2]
[311742124,1705372238537,-657.79,0.00022163,2]
[311742126,1705372238547,-820.64,0.00022163,2]
[311742128,1705372238556,-571.17,0.00022164,2]
[311742130,1705372238567,-1536.09,0.00022164,2]
[311742132,1705372238577,-938.82,0.00022164,2]
[311742134,1705372238588,-2491.32,0.00022164,2]
[311742136,1705372238598,-3570.35,0.00022164,2]
[311742138,1705372238608,-654.83,0.00022164,2]
[311742140,1705372238618,-5119.58,0.00022164,2]
[311742142,1705372238628,-909.15,0.00022165,2]
[311742144,1705372238638,-3008.32,0.00022165,2]
[311742146,1705372238647,-1890.29,0.00022165,2]
[311742148,1705372238657,-536.64,0.00022165,2]
[311742150,1705372238667,-500.0,0.00022165,2]
[311742152,1705372238677,-500.0,0.00022165,2]
[311742154,1705372238687,-1557.74,0.00022165,2]
[311742156,1705372238698,-1035.34,0.00022165,2]
[311742158,1705372238708,-1110.8,0.00022165,2]
[311742160,1705372238718,-2627.53,0.00022165,2]
[311742162,1705372238728,-982.86,0.00022165,2]
[311742164,1705372238737,-512.29,0.00022165,2]
[311742166,1705372238748,-630.63,0.00022165,2]
[311742168,1705372238757,-1225.2,0.00022165,2]
[311742170,1705372238767,-500.0,0.00022165,2]
[311742172,1705372238776,-763.49,0.00022165,2]
[311742174,1705372238786,-500.0,0.00022165,2]
[311742176,1705372238796,-12498.78,0.00022165,2]
[311742178,1705372238806,-620.04,0.00022165,2]
[311742180,1705372238816,-500.0,0.00022165,2]
[311742182,1705372238825,-500.0,0.00022165,2]
[311742184,1705372238834,-1199.78,0.00022165,2]
[311742186,1705372238844,-549.80021694,0.00022165,2]
[311742188,1705372238854,-500.0,0.00022165,2]
[311742190,1705372238864,-1379.56,0.00022165,2]
[311742192,1705372238874,-1551.0,0.00022166,2]
[311742194,1705372238884,-679.05,0.00022166,2]
[311742196,1705372238894,-812.13,0.00022166,2]
[311742198,1705372238904,-693.5,0.00022166,2]
[311742200,1705372238914,-642.63,0.00022166,2]
[311742202,1705372238924,-1012.68,0.00022166,2]
[311742204,1705372238932,-861.73,0.00022166,2]
[311742206,1705372238942,-500.0,0.00022166,2]
[311742208,1705372238952,-500.0,0.00022166,2]
[311742210,1705372238963,-500.0,0.00022166,2]
[311742212,1705372238974,-547.57,0.00022166,2]
[311742214,1705372238983,-629.59,0.00022166,2]
[311742216,1705372238993,-803.14,0.00022166,2]
[311742218,1705372239003,-500.0,0.00022166,2]
[311742220,1705372239013,-916.67,0.00022166,2]
[311742222,1705372239023,-703.69,0.00022166,2]
[311742224,1705372239033,-606.82,0.00022166,2]
[311742226,1705372239042,-644.05,0.00022166,2]
[311742228,1705372239053,-635.04,0.00022166,2]
[311742230,1705372239063,-500.0,0.00022166,2]
[311742232,1705372239073,-536.88,0.00022166,2]
[311742235,1705372239125,-500.0,0.00022166,2]
[311742237,1705372239134,-500.0,0.00022166,2]
[311742239,1705372239144,-586.4,0.00022166,2]
[311742240,1705372239153,-500.0,0.00022166,2]
[311742243,1705372239162,-642.33,0.00022166,2]
[311742244,1705372239171,-679.6,0.00022166,2]
[311742246,1705372239180,-1183.73,0.00022166,2]
[311742248,1705372239190,-628.93,0.00022166,2]
[311742250,1705372239199,-766.78,0.00022166,2]
[311742252,1705372239208,-727.77,0.00022166,2]
[311742254,1705372239217,-500.0,0.00022166,2]
[311742256,1705372239226,-519.75,0.00022166,2]
[311742258,1705372239235,-500.0,0.00022166,2]
[311742260,1705372239244,-684.41,0.00022166,2]
[311742262,1705372239253,-591.82,0.00022166,2]
[311742264,1705372239263,-636.3,0.00022166,2]
[311742266,1705372239272,-1089.75,0.00022166,2]
[311742268,1705372239281,-585.61,0.00022166,2]
[311742270,1705372239290,-1096.02,0.00022166,2]
[311742272,1705372239299,-500.0,0.00022166,2]
[311742274,1705372239308,-500.0,0.00022166,2]
[311742276,1705372239317,-550.67,0.00022166,2]
[311742278,1705372239327,-720.66,0.00022166,2]
[311742280,1705372239336,-1416.04,0.00022166,2]
[311742282,1705372239345,-5541.2,0.00022166,2]
[311742284,1705372239354,-900.12,0.00022166,2]
[311742286,1705372239363,-500.0,0.00022166,2]
[311742288,1705372239372,-680.75,0.00022166,2]
[311742290,1705372239381,-615.11,0.00022166,2]
[311742292,1705372239391,-2210.46,0.00022166,2]
[311742294,1705372239400,-826.69,0.00022166,2]
[311742296,1705372239410,-853.81,0.00022166,2]
[311742298,1705372239420,-1394.34,0.00022166,2]
[311742300,1705372239429,-500.0,0.00022166,2]
[311742302,1705372239439,-3023.84,0.00022166,2]
[311742304,1705372239450,-659.42,0.00022166,2]
[311742306,1705372239460,-1544.82,0.00022166,2]
[311742308,1705372239469,-574.97,0.00022166,2]
[311742310,1705372239478,-1072.25,0.00022166,2]
[311742312,1705372239488,-568.22,0.00022166,2]
[311742314,1705372239497,-726.23,0.00022166,2]
[311742316,1705372239505,-1313.63,0.00022166,2]
[311742318,1705372239514,-2363.63,0.00022166,2]
[311742320,1705372239523,-1058.26,0.00022166,2]
[311742322,1705372239532,-500.0,0.00022166,2]
[311742324,1705372239541,-588.27,0.00022166,2]
[311742326,1705372239550,-3001.26,0.00022166,2]
[311742328,1705372239559,-678.43,0.00022166,2]
[311742330,1705372239568,-617.24,0.00022166,2]
[311742332,1705372239577,-33.85671664,0.00022166,2]
[311742334,1705372239591,-466.14328336,0.00022166,2]
[311742336,1705372239600,-2065.33,0.00022166,2]
[311742338,1705372239609,-1752.84,0.00022166,2]
[311742340,1705372239618,-525.17,0.00022166,2]
[311742342,1705372239628,-745.78,0.00022166,2]
[311742344,1705372239638,-500.0,0.00022166,2]
[311742347,1705372239647,-5175.66,0.00022166,2]
[311742348,1705372239656,-500.0,0.00022166,5]
[311742351,1705372239665,-1176.59,0.00022166,2]
[311742353,1705372239674,-500.0,0.00022166,5]
[311742355,1705372239684,-1543.44,0.00022166,2]
[311742357,1705372239693,-1754.02,0.00022166,2]
[311742359,1705372239702,-500.0,0.00022166,2]
[311742361,1705372239712,-659.27,0.00022166,2]
[311742363,1705372239721,-500.0,0.00022166,2]
[311742365,1705372239730,-3476.31,0.00022166,2]
[311742367,1705372239739,-2948.09,0.00022166,2]
[311742369,1705372239749,-500.0,0.00022166,2]
[311742371,1705372239758,-7480.7,0.00022166,2]
[311742373,1705372239767,-500.0,0.00022166,2]
[311742375,1705372239777,-618.46,0.00022166,2]
[311742377,1705372239785,-11555.66,0.00022166,2]
[311742379,1705372239795,-500.0,0.00022166,2]
[311742382,1705372239804,-1257.58,0.00022166,2]
[311742385,1705372239813,-580.87,0.00022166,2]
[311742388,1705372239823,-1878.76,0.00022166,2]
[311742391,1705372239832,-227.35,0.00022166,2]
[311742394,1705372239841,-2747.81,0.00022166,2]
[311742396,1705372239851,-4391.56,0.00022166,2]
[311742399,1705372239860,-1247.84,0.00022166,2]
[311742402,1705372239870,-1812.77,0.00022166,2]
[311742405,1705372239879,-686.65,0.00022166,2]
[311742408,1705372239888,-539.11,0.00022166,2]
[311742410,1705372239898,-1380.39,0.00022166,2]
[311742412,1705372239907,-632.49,0.00022166,2]
[311742414,1705372239916,-2007.28,0.00022166,2]
[311742416,1705372239925,-1567.73,0.00022166,2]
[311742418,1705372239935,-4134.14,0.00022166,2]
[311742420,1705372239944,-500.0,0.00022166,2]
[311742422,1705372239953,-3438.39,0.00022166,2]
[311742424,1705372239962,-1442.0,0.00022166,2]
[311742426,1705372239971,-592.39,0.00022166,2]
[311742428,1705372239981,-3727.25,0.00022166,2]
[311742430,1705372239990,-500.0,0.00022166,2]
[311742432,1705372239999,-814.22,0.00022166,2]
[311742434,1705372240008,-5638.58,0.00022166,2]
[311742436,1705372240017,-698.66,0.00022166,2]
[311742438,1705372240027,-1992.69,0.00022166,2]
[311742440,1705372240036,-2452.37,0.00022166,2]
[311742442,1705372240045,-21084.41,0.00022166,2]
[311742444,1705372240054,-1435.47,0.00022166,2]
[311742446,1705372240064,-1623.61,0.00022166,2]
[311742448,1705372240075,-840.94,0.00022166,2]
[311742450,1705372240084,-1691.78,0.00022166,2]
[311742452,1705372240093,-834.13,0.00022166,2]
[311742454,1705372240103,-940.79,0.00022166,2]
[311742456,1705372240111,-500.0,0.00022166,2]
[311742458,1705372240120,-6890.21,0.00022166,2]
[311742460,1705372240130,-500.0,0.00022166,2]
[311742462,1705372240138,-1108.26189586,0.00022166,2]
[311742465,1705372240160,-3075.44810414,0.00022166,2]
[311742467,1705372240171,-500.96307778,0.00022166,2]
[311742469,1705372240182,-500.0,0.00022166,2]
[311742471,1705372240191,-2463.03,0.00022167,2]
[311742473,1705372240200,-1349.0,0.00022167,2]
[311742475,1705372240210,-732.01,0.00022167,2]
[311742477,1705372240225,-2245.89,0.00022167,2]
[311742479,1705372240234,-134.75875556,0.00022167,2]
[311742586,1705372241361,-500.0,0.00022165,2]
[311742587,1705372241371,-139.14654176,0.00022167,2]
[311742590,1705372241393,-525.66470268,0.00022167,2]
[311742592,1705372241403,-209.77138826,0.00022167,2]
[311742595,1705372241431,-391.89861174,0.00022167,2]
[311742597,1705372241442,-500.0,0.00022167,2]
[311742599,1705372241453,-99.87305543,0.00022167,2]
[311742603,1705372241503,-816.22100029,0.00022167,2]
[311742676,1705372242443,-500.0,0.00022165,2]
[311742678,1705372242452,-201.56594428,0.00022167,2]
[311742680,1705372242462,-321.08466505,0.00022167,2]
[311742685,1705372242496,-278.02097649,0.00022167,2]
[311742687,1705372242508,-250.97435846,0.00022167,2]
[311742715,1705372242759,-500.0,0.00022167,2]
[311742717,1705372242769,-928.91,0.00022167,2]
[311742720,1705372242778,-1940.92402029,0.00022167,2]
[311742722,1705372242796,-706.67597971,0.00022167,2]
[311742724,1705372242805,-5098.96868595,0.00022167,2]
[311742727,1705372242817,-6842.661,0.00022167,2]
[311742729,1705372242829,-543.33974753,0.00022167,2]
[311742731,1705372242840,-3098.17056652,0.00022167,2]
[311742733,1705372242849,-494.16,0.00022167,2]
[311742735,1705372242858,-571.52219045,0.0002217,2]
[311742737,1705372242867,-1029.73,0.0002217,2]
[311742739,1705372242877,-500.0,0.00022171,2]
[311742741,1705372242887,-554.2499309,0.00022171,2]
[311742743,1705372242898,-500.0,0.00022171,2]
[311742745,1705372242908,-168.39235878,0.00022171,2]
[311742747,1705372242918,-504.61098459,0.00022171,2]
[311742749,1705372242928,-350.56396876,0.00022171,2]
[311742752,1705372242943,-150.53855581,0.00022171,2]
[311742754,1705372242952,-502.74584769,0.00022171,2]
[311742756,1705372242962,-500.0,0.00022171,2]
[311742758,1705372242972,-500.0,0.00022171,2]
[311742760,1705372242980,-505.29689232,0.00022171,2]
[311742762,1705372242989,-500.0,0.00022171,2]
[311742764,1705372242998,-500.0,0.00022171,2]
[311742766,1705372243008,-500.0,0.00022171,2]
[311742768,1705372243018,-500.0,0.00022171,2]
[311742770,1705372243027,-615.3239741,0.00022171,2]
[311742772,1705372243037,-521.43,0.00022171,2]
[311742774,1705372243046,-500.0,0.00022171,2]
[311742776,1705372243056,-513.92434459,0.00022171,2]
[311742778,1705372243065,-500.0,0.00022171,2]
[311742780,1705372243074,-500.0,0.00022171,2]
[311742782,1705372243084,-500.0,0.00022171,2]
[311742784,1705372243094,-500.0,0.00022171,2]
[311742786,1705372243103,-500.0,0.00022171,2]
[311742788,1705372243112,-369.50101769,0.00022171,2]
[311742791,1705372243124,-130.49898231,0.00022171,2]
[311742792,1705372243134,-500.0,0.00022171,2]
[311742795,1705372243144,-341.90561129,0.00022171,2]
[311742798,1705372243165,-158.09438871,0.00022171,2]
[311742800,1705372243174,-500.0,0.00022171,2]
[311742802,1705372243184,-500.0,0.00022171,2]
[311742804,1705372243194,-485.2744901,0.00022171,2]
[311742808,1705372243226,-378.7055099,0.00022171,2]
[311742810,1705372243236,-360.7343763,0.00022171,2]
[311742984,1705372245521,-1114.84,0.00022163,2]
[311742985,1705372245531,-1282.51460174,0.00022163,2]
[311742986,1705372245543,-4027.80539826,0.00022163,2]
[311742987,1705372245552,-500.0,0.00022165,2]
[311742988,1705372245561,-664.6,0.00022165,2]
[311742989,1705372245571,-500.0,0.00022165,2]
[311742990,1705372245580,-506.76,0.00022166,2]
[311742991,1705372245590,-2360.4,0.00022166,2]
[311742992,1705372245599,-1273.79,0.00022166,2]
[311742993,1705372245609,-139.2656237,0.00022171,2]
[311742994,1705372245617,-500.0,0.00022171,2]
[311742995,1705372245627,-562.69,0.00022171,2]
[311742996,1705372245638,-500.0,0.00022171,2]
[311742997,1705372245647,-500.0,0.00022171,2]
[311742998,1705372245657,-500.0,0.00022171,2]
[311742999,1705372245665,-500.0,0.00022171,2]
[311743000,1705372245674,-605.4282524,0.00022171,2]
[311743001,1705372245683,-500.0,0.00022171,2]
[311743002,1705372245692,-500.0,0.00022171,2]
[311743003,1705372245702,-503.00017274,0.00022171,2]
[311743004,1705372245711,-418.3240276,0.00022171,2]
[311743005,1705372245751,-81.6759724,0.00022171,2]
[311743006,1705372245760,-500.0,0.00022171,2]
[311743007,1705372245769,-513.48135767,0.00022171,2]
[311743008,1705372245779,-500.0,0.00022171,2]
[311743009,1705372245788,-500.0,0.00022171,2]
[311743010,1705372245798,-500.0,0.00022171,2]
[311743011,1705372245807,-500.0,0.00022171,2]
[311743012,1705372245816,-617.85,0.00022171,2]
[311743013,1705372245826,-605.2,0.00022171,2]
[311743014,1705372245835,-500.0,0.00022171,2]
[311743015,1705372245845,-500.0,0.00022171,2]
[311743017,1705372245854,-500.0,0.00022171,2]
[311743019,1705372245863,-528.17015748,0.00022171,2]
[311743020,1705372245873,-500.0,0.00022171,2]
[311743022,1705372245882,-500.0,0.00022171,2]
[311743024,1705372245891,-533.08689485,0.00022171,2]
[311743026,1705372245901,-500.0,0.00022171,2]
[311743028,1705372245910,-500.0,0.00022171,2]
[311743030,1705372245920,-500.0,0.00022171,2]
[311743032,1705372245929,-500.0,0.00022171,2]
[311743034,1705372245938,-500.0,0.00022171,2]
[311743036,1705372245948,-500.0,0.00022171,2]
[311743039,1705372245958,-500.0,0.00022171,2]
[311743041,1705372245967,-500.0,0.00022171,2]
[311743043,1705372245976,-1923.64,0.00022171,2]
[311743045,1705372245985,-799.08,0.00022171,2]
[311743046,1705372245995,-607.0,0.00022171,2]
[311743048,1705372246004,-500.0,0.00022171,2]
[311743050,1705372246014,-590.48,0.00022171,2]
[311743051,1705372246024,-542.62,0.00022171,2]
[311743052,1705372246034,-500.0,0.00022171,2]
[311743053,1705372246043,-250.0,0.00022171,2]
[311743054,1705372246052,-500.0,0.00022171,2]
[311743055,1705372246062,-500.0,0.00022171,2]
[311743056,1705372246071,-518.4,0.00022171,2]
[311743057,1705372246080,-500.0,0.00022171,2]
[311743058,1705372246090,-657.02,0.00022171,2]
[311743059,1705372246099,-774.93,0.00022171,2]
[311743060,1705372246108,-500.0,0.00022171,2]
[311743061,1705372246118,-500.0,0.00022171,2]
[311743062,1705372246127,-728.84,0.00022171,2]
[311743063,1705372246137,-500.0,0.00022171,2]
[311743064,1705372246146,-547.26,0.00022171,2]
[311743065,1705372246155,-537.21,0.00022171,2]
[311743066,1705372246165,-664.06,0.00022171,2]
[311743067,1705372246179,-1528.15,0.00022171,2]
[311743068,1705372246188,-777.91,0.00022171,2]
[311743069,1705372246198,-500.0,0.00022171,2]
[311743070,1705372246207,-500.95,0.00022171,2]
[311743071,1705372246219,-500.0,0.00022171,2]
[311743072,1705372246228,-500.0,0.00022171,2]
[311743073,1705372246237,-500.0,0.00022171,2]
[311743074,1705372246246,-995.41,0.00022171,2]
[311743075,1705372246257,-876.39,0.00022171,2]
[311743076,1705372246267,-596.67,0.00022171,2]
[311743077,1705372246277,-500.0,0.00022171,2]
[311743078,1705372246286,-633.22,0.00022171,2]
[311743079,1705372246295,-500.0,0.00022171,2]
[311743080,1705372246304,-577.76,0.00022171,2]
[311743081,1705372246314,-501.31,0.00022171,2]
[311743082,1705372246323,-564.8,0.00022171,2]
[311743083,1705372246332,-500.0,0.00022171,2]
[311743084,1705372246341,-718.1,0.00022171,2]
[311743085,1705372246350,-827.91,0.00022171,2]
[311743086,1705372246359,-500.0,0.00022171,2]
[311743087,1705372246369,-500.0,0.00022171,2]
[311743088,1705372246378,-1351.43,0.00022171,2]
[311743089,1705372246387,-500.0,0.00022171,2]
[311743090,1705372246396,-500.0,0.00022171,2]
[311743091,1705372246405,-614.31,0.00022171,2]
[311743092,1705372246414,-942.47,0.00022171,2]
[311743093,1705372246423,-500.0,0.00022171,2]
[311743094,1705372246432,-1009.09,0.00022171,2]
[311743095,1705372246441,-500.0,0.00022171,2]
[311743096,1705372246450,-500.0,0.00022171,2]
[311743097,1705372246460,-500.0,0.00022171,2]
[311743098,1705372246470,-681.21,0.00022171,2]
[311743099,1705372246479,-642.23,0.00022171,2]
[311743100,1705372246488,-773.34,0.00022171,2]
[311743101,1705372246498,-659.11,0.00022171,2]
[311743102,1705372246507,-511.31,0.00022171,2]
[311743103,1705372246516,-569.78,0.00022171,2]
[311743104,1705372246526,-500.0,0.00022171,2]
[311743105,1705372246535,-1038.12,0.00022171,2]
[311743106,1705372246545,-513.58,0.00022171,2]
[311743107,1705372246554,-601.8,0.00022171,2]
[311743108,1705372246563,-500.0,0.00022171,2]
[311743109,1705372246572,-500.0,0.00022171,2]
[311743110,1705372246581,-500.0,0.00022171,2]
[311743111,1705372246591,-500.0,0.00022171,2]
[311743112,1705372246600,-802.98,0.00022171,2]
[311743113,1705372246609,-500.0,0.00022171,2]
[311743114,1705372246621,-500.0,0.00022171,2]
[311743115,1705372246630,-540.58,0.00022171,2]
[311743116,1705372246639,-808.47,0.00022171,2]
[311743117,1705372246648,-500.0,0.00022171,2]
[311743118,1705372246657,-500.0,0.00022171,2]
[311743119,1705372246666,-500.0,0.00022171,2]
[311743120,1705372246675,-500.0,0.00022171,2]
[311743121,1705372246685,-500.0,0.00022171,2]
[311743122,1705372246694,-500.0,0.00022171,2]
[311743123,1705372246703,-500.0,0.00022171,2]
[311743124,1705372246713,-500.0,0.00022171,2]
[311743125,1705372246722,-707.48,0.00022171,2]
[311743126,1705372246731,-509.62,0.00022171,2]
[311743127,1705372246741,-516.04,0.00022171,2]
[311743128,1705372246751,-500.0,0.00022171,2]
[311743129,1705372246761,-500.0,0.00022171,2]
[311743130,1705372246770,-500.0,0.00022171,2]
[311743131,1705372246781,-500.0,0.00022171,2]
[311743132,1705372246790,-714.58,0.00022171,2]
[311743133,1705372246799,-500.0,0.00022171,2]
[311743134,1705372246808,-1000.0,0.00022171,2]
[311743135,1705372246817,-500.0,0.00022171,2]
[311743136,1705372246826,-500.0,0.00022171,2]
[311743137,1705372246836,-1125.38,0.00022171,2]
[311743138,1705372246845,-777.44,0.00022171,2]
[311743139,1705372246854,-671.77,0.00022171,2]
[311743140,1705372246864,-709.77,0.00022171,2]
[311743141,1705372246873,-500.0,0.00022171,2]
[311743142,1705372246882,-500.0,0.00022171,2]
[311743143,1705372246892,-518.97,0.00022171,2]
[311743144,1705372246901,-500.0,0.00022171,2]
[311743145,1705372246910,-1023.8,0.00022171,2]
[311743146,1705372246919,-954.96,0.00022171,2]
[311743147,1705372246928,-717.72,0.00022171,2]
[311743148,1705372246938,-509.89,0.00022171,2]
[311743149,1705372246947,-884.49,0.00022171,2]
[311743150,1705372246956,-500.0,0.00022171,2]
[311743151,1705372246965,-500.0,0.00022171,2]
[311743152,1705372246974,-491.2709557,0.00022171,2]
[311743153,1705372246983,-500.0,0.00022171,2]
[311743154,1705372246993,-500.0,0.00022171,2]
[311743155,1705372247002,-300.0,0.00022171,2]
[311743156,1705372247011,-500.0,0.00022171,2]